fUSD/lending_fUSD_20250510
["ID","MTS","AMOUNT","RATE_DAILY","PERIOD"]
[360529158,1746845444697,-400.0,0.00019982,2]
[360529159,1746845444706,-400.0,0.00019982,2]
[360529160,1746845444715,-400.0,0.00019982,2]
[360529161,1746845444724,-400.0,0.00019982,2]
[360529162,1746845444733,-400.0,0.00019982,2]
[360529163,1746845444742,-400.0,0.00019982,2]
[360529164,1746845444752,-1000.0,0.00019982,2]
[360529165,1746845444761,-400.0,0.00019982,2]
[360529166,1746845444770,-400.0,0.00019982,2]
[360529167,1746845444780,-400.0,0.00019982,2]
[360529168,1746845444789,-400.0,0.00019982,2]
[360529169,1746845444799,-394.22951739,0.00019982,2]
[360529170,1746845444808,-400.0,0.00019982,2]
[360529171,1746845444818,-400.0,0.00019982,2]
[360529172,1746845444828,-214.47401236,0.00019982,2]
[360529173,1746845444838,-400.0,0.00019982,2]
[360529174,1746845444847,-419.80472669,0.00019982,2]
[360529175,1746845444857,-400.0,0.00019982,2]
[360529176,1746845444867,-327.49156701,0.00019982,2]
[360529177,1746845444877,-400.0,0.00019982,2]
[360529178,1746845444886,-655.9,0.00019982,2]
[360529179,1746845444895,-562.99,0.00019982,2]
[360529180,1746845444905,-400.0,0.00019982,2]
[360529181,1746845444914,-485.42011584,0.00019982,2]
[360529182,1746845444924,-400.0,0.00019982,2]
[360529183,1746845444933,-400.0,0.00019982,2]
[360529184,1746845444943,-400.0,0.00019982,2]
[360529185,1746845444952,-151.0,0.00019983,2]
[360529186,1746845444962,-968.9,0.00019983,2]
[360529187,1746845444972,-227.70485905,0.00019983,2]
[360529188,1746845444981,-400.0,0.00019983,2]
[360529189,1746845444991,-400.0,0.00019983,2]
[360529190,1746845445000,-400.0,0.00019983,2]
[360529191,1746845445010,-151.0,0.00019983,2]
[360529192,1746845445020,-537.27420465,0.00019983,2]
[360529193,1746845445031,-515.84832751,0.00019983,2]
[360529194,1746845445041,-279.93841178,0.00019983,2]
[360529195,1746845445051,-442.57104854,0.00019983,2]
[360529196,1746845445060,-400.0,0.00019983,2]
[360529197,1746845445070,-400.0,0.00019983,2]
[360529198,1746845445079,-278.03798876,0.00019983,2]
[360529199,1746845445089,-400.0,0.00019983,2]
[360529200,1746845445099,-400.0,0.00019983,2]
[360529201,1746845445108,-249.21835373,0.00019983,2]
[360529202,1746845445117,-508.2266971,0.00019983,2]
[360529203,1746845445126,-400.0,0.00019983,2]
[360529204,1746845445135,-400.0,0.00019983,2]
[360529205,1746845445144,-400.0,0.00019983,2]
[360529206,1746845445153,-400.0,0.00019983,2]
[360529207,1746845445162,-400.0,0.00019983,2]
[360529208,1746845445171,-513.54,0.00019983,2]
[360529209,1746845445180,-478.95313282,0.00019983,2]
[360529210,1746845445189,-400.0,0.00019983,2]
[360529211,1746845445199,-400.0,0.00019983,2]
[360529212,1746845445208,-400.0,0.00019983,2]
[360529213,1746845445217,-400.0,0.00019983,2]
[360529214,1746845445226,-185.82141815,0.00019983,2]
[360529215,1746845445235,-400.0,0.00019983,2]
[360529216,1746845445244,-400.0,0.00019983,2]
[360529217,1746845445254,-400.0,0.00019983,2]
[360529218,1746845445263,-400.0,0.00019983,2]
[360529219,1746845445272,-253.87277937,0.00019983,2]
[360529220,1746845445281,-400.0,0.00019983,2]
[360529221,1746845445290,-1002.94,0.00019983,2]
[360529222,1746845445299,-639.23,0.00019983,2]
[360529223,1746845445308,-400.0,0.00019983,2]
[360529224,1746845445317,-24761.98,0.00019983,2]
[360529225,1746845445327,-647.43,0.00019983,2]
[360529226,1746845445336,-400.0,0.00019983,2]
[360529227,1746845445346,-400.0,0.00019983,2]
[360529228,1746845445355,-400.0,0.00019983,2]
[360529229,1746845445365,-500.0,0.00019983,2]
[360529230,1746845445374,-400.0,0.00019983,2]
[360529231,1746845445383,-183.82900911,0.00019983,2]
[360529232,1746845445393,-400.0,0.00019983,2]
[360529233,1746845445402,-321.73743389,0.00019983,2]
[360529234,1746845445412,-400.0,0.00019983,2]
[360529235,1746845445423,-400.0,0.00019983,2]
[360529236,1746845445432,-596.54,0.00019983,2]
[360529237,1746845445441,-779.34,0.00019983,2]
[360529238,1746845445451,-500.0,0.00019983,2]
[360529239,1746845445460,-400.0,0.00019983,2]
[360529240,1746845445469,-400.0,0.00019983,2]
[360529241,1746845445479,-513.1,0.00019983,2]
[360529242,1746845445488,-750.85,0.00019983,2]
[360529243,1746845445498,-151.0,0.00019983,2]
[360529244,1746845445508,-1270.29,0.00019983,2]
[360529245,1746845445518,-500.0,0.00019983,2]
[360529246,1746845445528,-1558.96,0.00019983,2]
[360529247,1746845445538,-400.0,0.00019983,2]
[360529248,1746845445548,-400.0,0.00019983,2]
[360529249,1746845445558,-589.91,0.00019983,2]
[360529250,1746845445568,-400.0,0.00019983,2]
[360529251,1746845445580,-400.0,0.00019983,2]
[360529252,1746845445589,-400.0,0.00019983,2]
[360529253,1746845445599,-400.0,0.00019983,2]
[360529254,1746845445608,-400.0,0.00019983,2]
[360529255,1746845445618,-496.63,0.00019983,2]
[360529256,1746845445628,-989.53,0.00019983,2]
[360529257,1746845445639,-400.0,0.00019983,2]
[360529258,1746845445649,-1162.01,0.00019983,2]
[360529259,1746845445658,-400.0,0.00019983,2]
[360529260,1746845445667,-400.0,0.00019983,2]
[360529261,1746845445678,-400.0,0.00019983,2]
[360529262,1746845445687,-3028.65,0.00019983,2]
[360529263,1746845445696,-400.0,0.00019983,2]
[360529264,1746845445705,-1193.83,0.00019983,2]
[360529265,1746845445714,-490.8,0.00019983,2]
[360529266,1746845445724,-319.78591818,0.00019983,2]
[360529267,1746845445733,-386.89396218,0.00019983,2]
[360529268,1746845445743,-500.0,0.00019983,2]
[360529269,1746845445752,-500.0,0.00019983,2]
[360529270,1746845445761,-500.0,0.00019983,2]
[360529271,1746845445770,-500.0,0.00019983,2]
[360529272,1746845445779,-537.63813286,0.00019983,2]
[360529273,1746845445789,-500.0,0.00019983,2]
[360529274,1746845445798,-500.0,0.00019983,2]
[360529275,1746845445807,-500.0,0.00019983,2]
[360529276,1746845445816,-500.0,0.00019983,2]
[360529277,1746845445826,-500.0,0.00019983,2]
[360529278,1746845445835,-500.0,0.00019983,2]
[360529279,1746845445844,-500.0,0.00019983,2]
[360529280,1746845445854,-151.0,0.00019984,2]
[360529281,1746845445863,-200.0,0.00019984,2]
[360529282,1746845445872,-968.9,0.00019984,2]
[360529283,1746845445882,-400.0,0.00019984,2]
[360529284,1746845445892,-400.0,0.00019984,2]
[360529285,1746845445902,-400.0,0.00019984,2]
[360529286,1746845445912,-151.0,0.00019984,2]
[360529287,1746845445922,-400.0,0.00019984,2]
[360529288,1746845445932,-260.37910124,0.00019984,2]
[360529289,1746845445942,-229.93669959,0.00019984,2]
[360529290,1746845446060,-170.06330041,0.00019984,2]
[360529291,1746845446070,-400.0,0.00019984,2]
[360529292,1746845446079,-130.16538398,0.00019984,2]
[360529293,1746845446192,-400.0,0.00019971,2]
[360529294,1746845446204,-219.76020313,0.00019983,2]
[360529295,1746845446227,-180.23979687,0.00019983,2]
[360529296,1746845446236,-269.83461602,0.00019984,2]
[360529297,1746845446245,-400.0,0.00019984,2]
[360529298,1746845446254,-181.86928328,0.00019984,2]
[360529299,1746845446264,-400.0,0.00019984,2]
[360529300,1746845446273,-400.0,0.00019984,2]
[360529301,1746845446283,-518.51394001,0.00019984,2]
[360529302,1746845446293,-400.0,0.00019984,2]
[360529303,1746845446302,-304.35,0.00019984,2]
[360529304,1746845446311,-400.0,0.00019984,2]
[360529305,1746845446321,-290.26419867,0.00019984,2]
[360529306,1746845446330,-447.37566332,0.00019984,2]
[360529307,1746845446340,-400.0,0.00019984,2]
[360529308,1746845446349,-400.0,0.00019984,2]
[360529309,1746845446358,-417.82929226,0.00019984,2]
[360529310,1746845446370,-95.71070774,0.00019984,2]
[360529311,1746845446379,-305.23975474,0.00019984,2]
[360529312,1746845446389,-400.0,0.00019984,2]
[360529313,1746845446398,-96.4565275,0.00019984,2]
[360529314,1746845446413,-303.5434725,0.00019984,2]
[360529315,1746845446422,-405.03845677,0.00019984,2]
[360529316,1746845446431,-400.0,0.00019984,2]
[360529317,1746845446442,-7.56142536,0.00019984,2]
[360529319,1746845446455,-392.43857464,0.00019984,2]
[360529320,1746845446463,-400.0,0.00019984,2]
[360529321,1746845446473,-400.0,0.00019984,2]
[360529322,1746845446482,-400.0,0.00019984,2]
[360529323,1746845446491,-400.0,0.00019984,2]
[360529324,1746845446500,-400.0,0.00019984,2]
[360529325,1746845446509,-400.0,0.00019984,2]
[360529326,1746845446518,-400.0,0.00019984,2]
[360529327,1746845446528,-400.0,0.00019984,2]
[360529328,1746845446537,-400.0,0.00019984,2]
[360529329,1746845446546,-404.87886899,0.00019984,2]
[360529330,1746845446555,-400.0,0.00019984,2]
[360529331,1746845446564,-400.0,0.00019984,2]
[360529332,1746845446573,-400.0,0.00019984,2]
[360529333,1746845446582,-400.0,0.00019984,2]
[360529334,1746845446591,-400.0,0.00019984,2]
[360529335,1746845446600,-400.0,0.00019984,2]
[360529336,1746845446609,-400.0,0.00019984,2]
[360529337,1746845446618,-400.0,0.00019984,2]
[360529338,1746845446627,-320.32575033,0.00019984,2]
[360529339,1746845446640,-79.67424967,0.00019984,2]
[360529340,1746845446649,-189.8664995,0.00019984,2]
[360529341,1746845446661,-210.1335005,0.00019984,2]
[360529342,1746845446671,-400.0,0.00019984,2]
[360529343,1746845446680,-400.0,0.00019984,2]
[360529344,1746845446689,-400.0,0.00019984,2]
[360529345,1746845446699,-498.36194353,0.00019984,2]
[360529346,1746845446709,-1844.47,0.00019984,2]
[360529347,1746845446718,-400.0,0.00019984,2]
[360529348,1746845446728,-335.63980293,0.00019984,2]
[360529349,1746845446738,-400.0,0.00019984,2]
[360529350,1746845446748,-400.0,0.00019984,2]
[360529351,1746845446757,-400.0,0.00019984,2]
[360529352,1746845446766,-400.0,0.00019984,2]
[360529353,1746845446776,-400.0,0.00019984,2]
[360529354,1746845446785,-328.68962626,0.00019984,2]
[360529355,1746845446794,-400.0,0.00019984,2]
[360529356,1746845446803,-400.0,0.00019984,2]
[360529357,1746845446813,-400.0,0.00019984,2]
[360529358,1746845446823,-400.0,0.00019984,2]
[360529359,1746845446832,-496.3765496,0.00019984,2]
[360529360,1746845446841,-536.36,0.00019984,2]
[360529361,1746845446851,-400.0,0.00019984,2]
[360529362,1746845446860,-685.2,0.00019984,2]
[360529363,1746845446870,-400.0,0.00019984,2]
[360529364,1746845446879,-400.0,0.00019984,2]
[360529365,1746845446889,-440.13,0.00019984,2]
[360529366,1746845446898,-400.0,0.00019984,2]
[360529367,1746845446909,-400.0,0.00019984,2]
[360529368,1746845446919,-400.0,0.00019984,2]
[360529369,1746845446931,-250.0,0.00019984,2]
[360529370,1746845446940,-400.0,0.00019984,2]
[360529371,1746845446950,-1002.94,0.00019984,2]
[360529372,1746845446960,-400.0,0.00019984,2]
[360529373,1746845446969,-400.0,0.00019984,2]
[360529374,1746845446978,-400.0,0.00019984,2]
[360529375,1746845446988,-400.0,0.00019984,2]
[360529376,1746845446997,-400.0,0.00019984,2]
[360529377,1746845447007,-400.0,0.00019984,2]
[360529378,1746845447016,-2640.74,0.00019984,2]
[360529379,1746845447030,-172.09613016,0.00019984,2]
[360529380,1746845447040,-639.23,0.00019984,2]
[360529381,1746845447049,-400.0,0.00019984,2]
[360529382,1746845447059,-400.0,0.00019984,2]
[360529383,1746845447070,-400.0,0.00019984,2]
[360529384,1746845447079,-1000.0,0.00019984,2]
[360529385,1746845447088,-400.0,0.00019984,2]
[360529386,1746845447098,-400.0,0.00019984,2]
[360529387,1746845447108,-24761.98,0.00019984,2]
[360529388,1746845447119,-400.0,0.00019984,2]
[360529389,1746845447129,-535.46415643,0.00019984,2]
[360529390,1746845447138,-647.43,0.00019984,2]
[360529391,1746845447147,-400.0,0.00019984,2]
[360529392,1746845447157,-400.0,0.00019984,2]
[360529393,1746845447166,-400.0,0.00019984,2]
[360529394,1746845447175,-400.0,0.00019984,2]
[360529395,1746845447185,-400.0,0.00019984,2]
[360529396,1746845447194,-553.7,0.00019984,2]
[360529397,1746845447204,-400.0,0.00019984,2]
[360529398,1746845447214,-400.0,0.00019984,2]
[360529399,1746845447223,-400.0,0.00019984,2]
[360529400,1746845447232,-400.0,0.00019984,2]
[360529401,1746845447242,-562.07,0.00019984,2]
[360529402,1746845447251,-400.0,0.00019984,2]
[360529403,1746845447260,-151.0,0.00019984,2]
[360529404,1746845447269,-151.0,0.00019984,2]
[360529405,1746845447279,-1221.74,0.00019984,2]
[360529406,1746845447288,-400.0,0.00019984,2]
[360529407,1746845447298,-400.0,0.00019984,2]
[360529408,1746845447307,-400.0,0.00019984,2]
[360529409,1746845447317,-400.0,0.00019984,2]
[360529410,1746845447327,-400.0,0.00019984,2]
[360529411,1746845447337,-151.0,0.00019984,2]
[360529412,1746845447347,-159.033224,0.00019984,2]
[360529413,1746845447357,-495.16,0.00019984,2]
[360529414,1746845447366,-596.54,0.00019984,2]
[360529415,1746845447375,-400.0,0.00019984,2]
[360529416,1746845447384,-779.34,0.00019984,2]
[360529417,1746845447393,-400.0,0.00019984,2]
[360529418,1746845447402,-400.0,0.00019984,2]
[360529419,1746845447412,-655.9,0.00019984,2]
[360529420,1746845447421,-400.0,0.00019984,2]
[360529421,1746845447430,-513.1,0.00019984,2]
[360529422,1746845447439,-608.45,0.00019984,2]
[360529423,1746845447448,-151.0,0.00019984,2]
[360529424,1746845447458,-1270.29,0.00019984,2]
[360529425,1746845447467,-1757.63,0.00019984,2]
[360529426,1746845447476,-1558.96,0.00019984,2]
[360529427,1746845447486,-562.99,0.00019984,2]
[360529428,1746845447495,-400.0,0.00019984,2]
[360529429,1746845447506,-172.63030418,0.00019984,2]
[360529430,1746845447517,-589.91,0.00019984,2]
[360529431,1746845447526,-400.0,0.00019984,2]
[360529432,1746845447535,-400.0,0.00019984,2]
[360529433,1746845447544,-260.6538836,0.00019984,2]
[360529434,1746845447553,-400.0,0.00019984,2]
[360529435,1746845447562,-400.0,0.00019984,2]
[360529436,1746845447571,-989.53,0.00019984,2]
[360529437,1746845447580,-400.0,0.00019984,2]
[360529438,1746845447589,-400.0,0.00019984,2]
[360529439,1746845447599,-1162.01,0.00019984,2]
[360529440,1746845447608,-434.28,0.00019984,2]
[360529441,1746845447617,-380.06124341,0.00019984,2]
[360529442,1746845447626,-1676.31,0.00019984,2]
[360529443,1746845447636,-400.0,0.00019984,2]
[360529444,1746845447644,-400.0,0.00019984,2]
[360529445,1746845447653,-444.92,0.00019984,2]
[360529446,1746845447662,-1193.83,0.00019984,2]
[360529447,1746845447672,-490.8,0.00019984,2]
[360529448,1746845447681,-400.0,0.00019984,2]
[360529449,1746845447691,-427.52997964,0.00019984,2]
[360529450,1746845447700,-160.02646054,0.00019984,2]
[360529451,1746845447709,-400.0,0.00019984,2]
[360529452,1746845447719,-534.57830229,0.00019984,2]
[360529453,1746845447728,-151.0,0.00019985,2]
[360529454,1746845447737,-151.0,0.00019985,2]
[360529455,1746845447746,-968.9,0.00019985,2]
[360529456,1746845447755,-303.68171912,0.00019985,2]
[360529457,1746845447765,-400.0,0.00019985,2]
[360529458,1746845447774,-400.0,0.00019985,2]
[360529459,1746845447785,-151.0,0.00019985,2]
[360529460,1746845447795,-151.0,0.00019985,2]
[360529461,1746845447804,-415.47,0.00019985,2]
[360529462,1746845447813,-400.0,0.00019985,2]
[360529463,1746845447823,-400.0,0.00019985,2]
[360529464,1746845447832,-400.0,0.00019985,2]
[360529465,1746845447841,-400.0,0.00019985,2]
[360529466,1746845447851,-328.90071353,0.00019985,2]
[360529467,1746845447860,-400.0,0.00019985,2]
[360529468,1746845447869,-400.0,0.00019985,2]
[360529469,1746845447879,-400.0,0.00019985,2]
[360529470,1746845447888,-384.30383221,0.00019985,2]
[360529471,1746845447897,-400.0,0.00019985,2]
[360529472,1746845447907,-220.11114529,0.00019985,2]
[360529473,1746845447916,-276.67285405,0.00019985,2]
[360529474,1746845447925,-400.0,0.00019985,2]
[360529475,1746845447935,-400.0,0.00019985,2]
[360529476,1746845447944,-277.79326252,0.00019985,2]
[360529477,1746845447954,-513.54,0.00019985,2]
[360529478,1746845447964,-400.0,0.00019985,2]
[360529479,1746845447974,-400.0,0.00019985,2]
[360529480,1746845447983,-399.14536518,0.00019985,2]
[360529481,1746845447993,-262.11749041,0.00019985,2]
[360529482,1746845448002,-400.0,0.00019985,2]
[360529483,1746845448012,-224.15673042,0.00019985,2]
[360529484,1746845448023,-441.97323443,0.00019985,2]
[360529485,1746845448033,-400.0,0.00019985,2]
[360529486,1746845448043,-170.79489459,0.00019985,2]
[360529487,1746845448052,-400.0,0.00019985,2]
[360529488,1746845448063,-547.53649329,0.00019985,2]
[360529489,1746845448072,-176.74538784,0.00019985,2]
[360529490,1746845448082,-1844.47,0.00019985,2]
[360529491,1746845448092,-1844.47,0.00019985,2]
[360529492,1746845448103,-400.0,0.00019985,2]
[360529493,1746845448113,-400.0,0.00019985,2]
[360529494,1746845448122,-400.0,0.00019985,2]
[360529495,1746845448132,-685.2,0.00019985,2]
[360529496,1746845448141,-685.2,0.00019985,2]
[360529497,1746845448151,-400.0,0.00019985,2]
[360529498,1746845448160,-86.6735376,0.00019985,2]
[360529499,1746845448174,-313.3264624,0.00019985,2]
[360529500,1746845448352,-440.13,0.00019985,2]
[360529501,1746845448362,-440.13,0.00019985,2]
[360529502,1746845448372,-400.0,0.00019985,2]
[360529503,1746845448381,-400.0,0.00019985,2]
[360529504,1746845448391,-334.3046955,0.00019985,2]
[360529505,1746845448401,-400.0,0.00019985,2]
[360529506,1746845448416,-400.0,0.00019985,2]
[360529507,1746845448426,-1002.94,0.00019985,2]
[360529508,1746845448436,-400.0,0.00019985,2]
[360529509,1746845448446,-400.0,0.00019985,2]
[360529510,1746845448456,-400.0,0.00019985,2]
[360529511,1746845448465,-400.0,0.00019985,2]
[360529512,1746845448475,-2640.74,0.00019985,2]
[360529513,1746845448485,-2640.74,0.00019985,2]
[360529514,1746845448495,-639.23,0.00019985,2]
[360529515,1746845448504,-400.0,0.00019985,2]
[360529516,1746845448515,-24761.98,0.00019985,2]
[360529517,1746845448524,-647.43,0.00019985,2]
[360529518,1746845448534,-400.0,0.00019985,2]
[360529519,1746845448543,-400.0,0.00019985,2]
[360529520,1746845448553,-400.0,0.00019985,2]
[360529521,1746845448563,-400.0,0.00019985,2]
[360529522,1746845448572,-400.0,0.00019985,2]
[360529523,1746845448581,-553.7,0.00019985,2]
[360529524,1746845448591,-553.7,0.00019985,2]
[360529525,1746845448600,-400.0,0.00019985,2]
[360529526,1746845448609,-400.0,0.00019985,2]
[360529527,1746845448619,-400.0,0.00019985,2]
[360529528,1746845448628,-562.07,0.00019985,2]
[360529529,1746845448638,-562.07,0.00019985,2]
[360529530,1746845448647,-151.0,0.00019985,2]
[360529531,1746845448658,-1221.74,0.00019985,2]
[360529532,1746845448667,-1221.74,0.00019985,2]
[360529533,1746845448676,-151.0,0.00019985,2]
[360529534,1746845448686,-400.0,0.00019985,2]
[360529535,1746845448695,-400.0,0.00019985,2]
[360529536,1746845448705,-400.0,0.00019985,2]
[360529537,1746845448715,-400.0,0.00019985,2]
[360529538,1746845448724,-114.96009435,0.00019985,2]
[360529539,1746845448736,-481.57990565,0.00019985,2]
[360529540,1746845448745,-710.89651435,0.00019985,2]
[360529541,1746845448762,-68.44348565,0.00019985,2]
[360529542,1746845448771,-500.0,0.00019985,2]
[360529543,1746845448781,-119.64177253,0.00019985,2]
[360529544,1746845448793,-380.35822747,0.00019985,2]
[360529545,1746845448802,-400.0,0.00019985,2]
[360529546,1746845448811,-368.14692452,0.00019985,2]
[360529547,1746845448821,-400.0,0.00019985,2]
[360529548,1746845448830,-324.64371801,0.00019985,2]
[360529549,1746845448850,-75.35628199,0.00019985,2]
[360529550,1746845448859,-513.1,0.00019985,2]
[360529551,1746845448869,-750.85,0.00019985,2]
[360529552,1746845448880,-750.85,0.00019985,2]
[360529553,1746845448890,-306.94939879,0.00019985,2]
[360529554,1746845448902,-963.34060121,0.00019985,2]
[360529555,1746845448911,-1558.96,0.00019985,2]
[360529556,1746845448920,-400.0,0.00019985,2]
[360529557,1746845448930,-400.0,0.00019985,2]
[360529558,1746845448939,-400.0,0.00019985,2]
[360529559,1746845448949,-589.91,0.00019985,2]
[360529560,1746845448959,-400.0,0.00019985,2]
[360529561,1746845448969,-400.0,0.00019985,2]
[360529562,1746845448979,-400.0,0.00019985,2]
[360529563,1746845448989,-400.0,0.00019985,2]
[360529564,1746845448999,-400.0,0.00019985,2]
[360529565,1746845449008,-249.32438112,0.00019985,2]
[360529566,1746845782228,267.24,0.00018943,2]
[360529567,1746845785062,150.0,0.00018986,7]
[360529568,1746846008678,15054.1225262,0.000195,2]
[360529569,1746846113882,493.20529,0.000288,30]
[360529570,1746846121086,1000.0,0.00018943,2]
[360529571,1746846164118,220.16,0.000195,2]
[360529572,1746846377062,251.67,0.00017022,2]
[360529573,1746846377546,251.67,0.00019286,2]
[360529592,1746846553313,-175.21188854,0.00019699,2]
[360529593,1746846553336,-175.2,0.000197,2]
[360529594,1746846553358,-191.556799,0.00019746,2]
[360529595,1746846553384,-200.0,0.00019808,2]
[360529596,1746846553407,-191.03131246,0.00019871,2]
[360529624,1746846631959,-116.45098754,0.00019871,2]
[360529625,1746846631969,-928.6786786,0.00019885,2]
[360529626,1746846631978,-207.4,0.00019886,2]
[360529627,1746846631987,-191.556799,0.00019896,2]
[360529628,1746846631997,-197.10894301,0.00019897,2]
[360529629,1746846632007,-156.2275566,0.00019898,2]
[360529630,1746846632016,-156.22755657,0.00019899,2]
[360529631,1746846632025,-172.14312808,0.00019899,2]
[360529632,1746846632035,-1200.0,0.00019899,2]
[360529633,1746846632045,-300.0,0.00019899,2]
[360529634,1746846632054,-156.22755657,0.00019899,2]
[360529635,1746846632064,-300.0,0.00019899,2]
[360529636,1746846632073,-156.22755657,0.000199,2]
[360529637,1746846632082,-2852.28989983,0.000199,2]
[360529638,1746846632092,-953.10851063,0.000199,2]
[360529639,1746846632102,-156.22755657,0.000199,2]
[360529640,1746846632112,-969.818,0.00019936,2]
[360529641,1746846632122,-152.60173656,0.00019938,2]
[360529642,1746846632143,-1645.71226344,0.00019938,2]
[360529643,1746846632153,-157.849,0.00019938,2]
[360529644,1746846632162,-500.0,0.00019973,2]
[360529645,1746846632172,-500.0,0.00019973,2]
[360529646,1746846632181,-500.0,0.00019973,2]
[360529647,1746846632191,-242.0328494,0.00019973,2]
[360529648,1746846632200,-500.81967353,0.00019973,2]
[360529649,1746846632209,-500.0,0.00019973,2]
[360529650,1746846632219,-500.0,0.00019973,2]
[360529651,1746846632228,-500.0,0.00019973,2]
[360529652,1746846632238,-974.674,0.00019973,2]
[360529653,1746846632248,-400.0,0.00019981,2]
[360529654,1746846632259,-525.40235573,0.00019981,2]
[360529655,1746846632268,-220.08837835,0.00019981,2]
[360529657,1746846632278,-433.24787076,0.00019981,2]
[360529658,1746846632287,-400.0,0.00019981,2]
[360529660,1746846632297,-406.55,0.00019981,2]
[360529662,1746846632307,-400.0,0.00019982,2]
[360529665,1746846632317,-400.0,0.00019982,2]
[360529667,1746846632327,-400.0,0.00019982,2]
[360529669,1746846632336,-400.0,0.00019982,2]
[360529671,1746846632346,-1383.36,0.00019982,2]
[360529673,1746846632355,-500.0,0.00019983,2]
[360529675,1746846632365,-173.22933227,0.00019984,2]
[360529677,1746846632375,-400.0,0.00019984,2]
[360529679,1746846632384,-400.0,0.00019984,2]
[360529681,1746846632393,-400.0,0.00019984,2]
[360529683,1746846632403,-400.0,0.00019984,2]
[360529685,1746846632415,-407.07693293,0.00019984,2]
[360529687,1746846632424,-406.55,0.00019984,2]
[360529689,1746846632433,-1383.36,0.00019984,2]
[360529691,1746846632442,-500.0,0.00019984,2]
[360529693,1746846632451,-200.0,0.00019985,2]
[360529695,1746846632463,-200.0,0.00019985,2]
[360529698,1746846632473,-400.0,0.00019995,2]
[360529701,1746846632483,-423.03,0.00019995,2]
[360529704,1746846632495,-429.45,0.00019995,2]
[360529706,1746846632505,-11.27364566,0.00019995,2]
[360529710,1746846632529,-388.72635434,0.00019995,2]
[360529713,1746846632539,-106.05036916,0.00019995,2]
[360529755,1746846637811,-365.49510007,0.00019995,2]
[360529756,1746846638131,-2470.35453077,0.00019995,2]
[360529757,1746846638141,-400.0,0.00019995,2]
[360529758,1746846638151,-400.0,0.00019995,2]
[360529759,1746846638160,-400.0,0.00019995,2]
[360529760,1746846638169,-545.87,0.00019995,2]
[360529761,1746846638178,-400.0,0.00019995,2]
[360529763,1746846638187,-468.39,0.00019995,2]
[360529765,1746846638197,-1347.27,0.00019995,2]
[360529767,1746846638206,-459.49372532,0.00019996,2]
[360529769,1746846638218,-40.50627468,0.00019996,2]
[360529771,1746846638227,-170.84868143,0.00019996,2]
[360529773,1746846638236,-400.0,0.00019996,2]
[360529775,1746846638245,-271.82768606,0.00019996,2]
[360529777,1746846638255,-400.0,0.00019996,2]
[360529779,1746846638265,-400.0,0.00019996,2]
[360529780,1746846638275,-157.86141576,0.00019996,2]
[360529782,1746846638284,-400.0,0.00019996,2]
[360529784,1746846638293,-491.199194,0.00019996,2]
[360529786,1746846638303,-266.56614868,0.00019996,2]
[360529788,1746846638312,-400.0,0.00019996,2]
[360529790,1746846638322,-400.0,0.00019996,2]